lending/lending_fUSD_20240710
["ID","MTS","AMOUNT","RATE_DAILY","PERIOD"]
[331615572,1720583459336,-500.0,0.00013753,2]
[331615573,1720583459345,-770.18,0.00013753,2]
[331615574,1720583459355,-754.07,0.00013753,2]
[331615575,1720583459364,-964.75,0.00013753,2]
[331615576,1720583459374,-500.0,0.00013753,2]
[331615577,1720583459383,-3719.06,0.00013753,2]
[331615578,1720583459393,-2688.83,0.00013753,2]
[331615579,1720583459402,-232.65520702,0.00013753,2]
[331615580,1720583459413,-500.0,0.00013753,2]
[331615581,1720583459422,-500.0,0.00013753,2]
[331615582,1720583459433,-500.0,0.00013753,2]
[331615583,1720583459443,-151.0,0.00013753,2]
[331615584,1720583459452,-500.0,0.00013753,2]
[331615585,1720583459462,-151.0,0.00013753,2]
[331615586,1720583459472,-860.66,0.00013753,2]
[331615587,1720583459481,-500.0,0.00013753,2]
[331615588,1720583459491,-2500.56,0.00013753,2]
[331615589,1720583459500,-622.21,0.00013753,2]
[331615590,1720583459510,-500.0,0.00013753,2]
[331615591,1720583459519,-151.0,0.00013753,2]
[331615592,1720583459528,-1925.7,0.00013753,2]
[331615593,1720583459538,-151.0,0.00013753,2]
[331615594,1720583459547,-762.98,0.00013753,2]
[331615595,1720583459558,-2582.16,0.00013753,2]
[331615596,1720583459568,-2721.38,0.00013753,2]
[331615597,1720583459577,-895.15,0.00013753,2]
[331615598,1720583459586,-1514.64,0.00013753,2]
[331615599,1720583459736,-500.0,0.00013753,2]
[331615600,1720583459746,-717.48,0.00013753,2]
[331615601,1720583459756,-1621.33,0.00013753,2]
[331615602,1720583459767,-642.88693143,0.00013753,2]
[331615603,1720583459777,-1087.95,0.00013753,2]
[331615604,1720583459788,-500.0,0.00013753,2]
[331615605,1720583459797,-500.0,0.00013753,2]
[331615606,1720583459807,-500.0,0.00013753,2]
[331615607,1720583459816,-2802.51,0.00013753,2]
[331615608,1720583459826,-2516.16,0.00013753,2]
[331615609,1720583459835,-500.0,0.00013753,2]
[331615610,1720583459845,-500.0,0.00013753,2]
[331615611,1720583459854,-1063.39,0.00013753,2]
[331615612,1720583459864,-500.0,0.00013753,2]
[331615613,1720583459873,-934.8,0.00013753,2]
[331615614,1720583459883,-500.0,0.00013753,2]
[331615615,1720583459893,-3673.71,0.00013753,2]
[331615616,1720583459902,-2392.37,0.00013753,2]
[331615617,1720583459912,-1054.57,0.00013753,2]
[331615618,1720583459946,-500.0,0.00013753,2]
[331615619,1720583459956,-500.0,0.00013753,2]
[331615620,1720583459965,-306.97568975,0.00013753,2]
[331615621,1720583459975,-1832.82,0.00013753,2]
[331615622,1720583459984,-3366.97,0.00013753,2]
[331615623,1720583459994,-1352.5,0.00013753,2]
[331615624,1720583460004,-1075.47,0.00013753,2]
[331615625,1720583460014,-500.0,0.00013753,2]
[331615626,1720583460024,-1826.61,0.00013753,2]
[331615627,1720583460033,-500.0,0.00013753,2]
[331615628,1720583460043,-180.60266675,0.00013753,2]
[331615629,1720583460053,-500.0,0.00013753,2]
[331615630,1720583460063,-2017.59,0.00013753,2]
[331615631,1720583460072,-2632.25,0.00013753,2]
[331615632,1720583460082,-801.9,0.00013753,2]
[331615633,1720583460092,-2757.55,0.00013753,2]
[331615634,1720583460102,-775.18,0.00013753,2]
[331615635,1720583460112,-500.0,0.00013753,2]
[331615636,1720583460123,-1851.68,0.00013753,2]
[331615637,1720583460135,-500.0,0.00013753,2]
[331615638,1720583460145,-1195.71,0.00013753,2]
[331615639,1720583460155,-2471.87,0.00013753,2]
[331615640,1720583460165,-224.92914952,0.00013753,2]
[331615641,1720583460174,-500.0,0.00013753,2]
[331615642,1720583460184,-500.0,0.00013753,2]
[331615643,1720583460195,-500.0,0.00013753,2]
[331615644,1720583460205,-500.0,0.00013753,2]
[331615645,1720583460215,-1994.26,0.00013753,2]
[331615646,1720583460224,-674.95,0.00013753,2]
[331615647,1720583460234,-825.76,0.00013753,2]
[331615648,1720583460244,-4774.33,0.00013753,2]
[331615649,1720583460254,-500.0,0.00013753,2]
[331615650,1720583460264,-888.65,0.00013753,2]
[331615651,1720583460275,-500.0,0.00013753,2]
[331615652,1720583460285,-3148.62,0.00013753,2]
[331615653,1720583460295,-500.0,0.00013753,2]
[331615654,1720583460305,-500.0,0.00013753,2]
[331615655,1720583460315,-983.06,0.00013753,2]
[331615656,1720583460324,-500.0,0.00013753,2]
[331615657,1720583460334,-500.0,0.00013753,2]
[331615658,1720583460344,-500.0,0.00013753,2]
[331615659,1720583460353,-1059.64,0.00013753,2]
[331615660,1720583460363,-500.0,0.00013753,2]
[331615661,1720583460372,-500.0,0.00013753,2]
[331615662,1720583460382,-762.88,0.00013753,2]
[331615663,1720583460392,-500.0,0.00013753,2]
[331615664,1720583460402,-500.0,0.00013753,2]
[331615665,1720583460412,-500.0,0.00013753,2]
[331615666,1720583460423,-2272.2,0.00013753,2]
[331615667,1720583460434,-1297.41,0.00013753,2]
[331615668,1720583460444,-500.0,0.00013753,2]
[331615669,1720583460454,-500.0,0.00013753,2]
[331615670,1720583460463,-500.0,0.00013753,2]
[331615671,1720583460474,-1853.98,0.00013753,2]
[331615672,1720583460483,-1945.77,0.00013753,2]
[331615673,1720583460494,-500.0,0.00013753,2]
[331615674,1720583460503,-2428.57,0.00013753,2]
[331615675,1720583460513,-1218.23,0.00013753,2]
[331615676,1720583460522,-500.0,0.00013753,2]
[331615677,1720583460532,-511.78,0.00013753,2]
[331615678,1720583460541,-532.07,0.00013753,2]
[331615679,1720583460550,-500.0,0.00013753,2]
[331615680,1720583460560,-500.0,0.00013753,2]
[331615681,1720583460569,-1001.76,0.00013753,2]
[331615682,1720583460579,-500.0,0.00013753,2]
[331615683,1720583460588,-500.0,0.00013753,2]
[331615684,1720583460597,-670.31,0.00013753,2]
[331615685,1720583460607,-500.0,0.00013753,2]
[331615686,1720583460616,-615.54,0.00013753,2]
[331615687,1720583460625,-2491.13,0.00013753,2]
[331615688,1720583460635,-500.0,0.00013753,2]
[331615689,1720583460646,-500.0,0.00013753,2]
[331615690,1720583460656,-1507.71,0.00013753,2]
[331615691,1720583460665,-500.0,0.00013753,2]
[331615692,1720583460674,-1206.65,0.00013753,2]
[331615693,1720583460683,-501.59,0.00013753,2]
[331615694,1720583460693,-500.0,0.00013753,2]
[331615695,1720583460703,-500.0,0.00013753,2]
[331615696,1720583460712,-597.93,0.00013753,2]
[331615697,1720583460722,-500.0,0.00013753,2]
[331615698,1720583460732,-500.0,0.00013753,2]
[331615699,1720583460741,-500.0,0.00013753,2]
[331615700,1720583460751,-500.0,0.00013753,2]
[331615701,1720583460761,-500.0,0.00013753,2]
[331615702,1720583460771,-500.0,0.00013753,2]
[331615703,1720583460782,-500.0,0.00013753,2]
[331615704,1720583460791,-500.0,0.00013753,2]
[331615705,1720583460801,-1256.96,0.00013753,2]
[331615706,1720583460811,-500.0,0.00013753,2]
[331615707,1720583460821,-500.0,0.00013753,2]
[331615708,1720583460830,-500.0,0.00013753,2]
[331615709,1720583460840,-182.97132056,0.00013753,2]
[331615710,1720583460850,-500.0,0.00013753,2]
[331615711,1720583460860,-500.0,0.00013753,2]
[331615712,1720583460871,-2173.66,0.00013753,2]
[331615713,1720583460881,-500.0,0.00013753,2]
[331615714,1720583460892,-500.0,0.00013753,2]
[331615715,1720583460901,-518.44,0.00013753,2]
[331615716,1720583460911,-636.7,0.00013753,2]
[331615717,1720583460921,-500.0,0.00013753,2]
[331615718,1720583460930,-500.0,0.00013753,2]
[331615719,1720583460940,-500.0,0.00013753,2]
[331615720,1720583460950,-500.0,0.00013753,2]
[331615721,1720583460960,-1516.42,0.00013753,2]
[331615722,1720583460970,-1887.1,0.00013753,2]
[331615723,1720583460980,-500.0,0.00013753,2]
[331615724,1720583460989,-575.03,0.00013753,2]
[331615725,1720583460999,-500.0,0.00013753,2]
[331615726,1720583461008,-500.0,0.00013753,2]
[331615727,1720583461018,-1075.03,0.00013753,2]
[331615728,1720583461028,-729.6,0.00013753,2]
[331615729,1720583461037,-500.0,0.00013753,2]
[331615730,1720583461047,-1856.67,0.00013753,2]
[331615731,1720583461056,-500.0,0.00013753,2]
[331615732,1720583461066,-2495.24,0.00013753,2]
[331615733,1720583461075,-500.0,0.00013753,2]
[331615734,1720583461084,-799.22,0.00013753,2]
[331615735,1720583461094,-1457.38,0.00013753,2]
[331615736,1720583461103,-804.76,0.00013753,2]
[331615737,1720583461113,-500.0,0.00013753,2]
[331615738,1720583461123,-500.0,0.00013753,2]
[331615739,1720583461132,-500.0,0.00013753,2]
[331615740,1720583461143,-406.83031347,0.00013753,2]
[331615741,1720583461152,-560.65260537,0.00013753,2]
[331615742,1720583461162,-1022.23,0.00013753,2]
[331615743,1720583461171,-500.0,0.00013753,2]
[331615744,1720583461181,-965.37,0.00013753,2]
[331615745,1720583461191,-3086.77,0.00013753,2]
[331615746,1720583461201,-500.0,0.00013753,2]
[331615747,1720583461210,-500.0,0.00013753,2]
[331615748,1720583461220,-500.0,0.00013753,2]
[331615749,1720583461230,-785.56,0.00013753,2]
[331615750,1720583461246,-500.0,0.00013753,2]
[331615751,1720583461256,-636.63,0.00013753,2]
[331615752,1720583461265,-500.0,0.00013753,2]
[331615753,1720583461276,-2051.28,0.00013753,2]
[331615754,1720583461286,-979.08,0.00013753,2]
[331615755,1720583461296,-500.0,0.00013753,2]
[331615756,1720583461306,-1421.7,0.00013753,2]
[331615757,1720583461315,-500.0,0.00013753,2]
[331615758,1720583461325,-398.50343,0.00013753,2]
[331615759,1720583461335,-398.50343,0.00013753,2]
[331615760,1720583461345,-398.50343,0.00013753,2]
[331615761,1720583461354,-1452.63,0.00013753,2]
[331615762,1720583461364,-1072.72,0.00013753,2]
[331615763,1720583461374,-500.0,0.00013753,2]
[331615764,1720583461384,-500.0,0.00013753,2]
[331615765,1720583461395,-500.0,0.00013753,2]
[331615766,1720583461405,-1983.44,0.00013753,2]
[331615767,1720583461417,-2887.2,0.00013753,2]
[331615768,1720583461429,-659.8,0.00013753,2]
[331615769,1720583461439,-500.0,0.00013753,2]
[331615770,1720583461450,-851.11,0.00013753,2]
[331615771,1720583461461,-1412.48,0.00013753,2]
[331615772,1720583461471,-1030.83,0.00013753,2]
[331615773,1720583461481,-500.0,0.00013753,2]
[331615774,1720583461491,-500.0,0.00013753,2]
[331615775,1720583461501,-500.0,0.00013753,2]
[331615776,1720583461511,-500.0,0.00013753,2]
[331615777,1720583461521,-500.0,0.00013753,2]
[331615778,1720583461531,-500.0,0.00013753,2]
[331615779,1720583461541,-1530.41,0.00013753,2]
[331615780,1720583461551,-500.0,0.00013753,2]
[331615781,1720583461561,-1691.1,0.00013753,2]
[331615782,1720583461571,-749.91,0.00013753,2]
[331615783,1720583461581,-500.0,0.00013753,2]
[331615784,1720583461591,-500.0,0.00013753,2]
[331615785,1720583461601,-675.35,0.00013753,2]
[331615786,1720583461610,-766.66,0.00013753,2]
[331615787,1720583461619,-500.0,0.00013753,2]
[331615788,1720583461629,-871.68,0.00013753,2]
[331615789,1720583461638,-151.0,0.00013753,2]
[331615790,1720583461650,-500.0,0.00013753,2]
[331615791,1720583461659,-151.0,0.00013753,2]
[331615792,1720583461669,-1778.52,0.00013753,2]
[331615793,1720583461679,-151.0,0.00013753,2]
[331615794,1720583461689,-500.0,0.00013753,2]
[331615795,1720583461699,-500.0,0.00013753,2]
[331615796,1720583461709,-2209.29,0.00013753,2]
[331615797,1720583461719,-603.97,0.00013753,2]
[331615798,1720583461728,-500.0,0.00013753,2]
[331615799,1720583461738,-1634.01,0.00013753,2]
[331615800,1720583461748,-500.0,0.00013753,2]
[331615801,1720583461758,-151.0,0.00013753,2]
[331615802,1720583461768,-151.0,0.00013753,2]
[331615803,1720583461778,-500.0,0.00013753,2]
[331615804,1720583461788,-1824.95,0.00013753,2]
[331615805,1720583461797,-500.0,0.00013753,2]
[331615806,1720583461807,-2743.13,0.00013753,2]
[331615807,1720583461816,-3200.39,0.00013753,2]
[331615808,1720583461826,-1245.27,0.00013753,2]
[331615809,1720583461837,-549.54,0.00013753,2]
[331615810,1720583461846,-2398.16,0.00013753,2]
[331615811,1720583461855,-2318.65,0.00013753,2]
[331615812,1720583461865,-500.0,0.00013753,2]
[331615813,1720583461875,-1010.85,0.00013753,2]
[331615814,1720583461884,-500.0,0.00013753,2]
[331615815,1720583461896,-587.91,0.00013753,2]
[331615816,1720583462359,-500.0,0.00013753,2]
[331615817,1720583462384,-1395.57,0.00013753,2]
[331615818,1720583462397,-1297.97,0.00013753,2]
[331615819,1720583462407,-500.0,0.00013753,2]
[331615820,1720583462417,-1250.22,0.00013753,2]
[331615821,1720583462428,-607.32,0.00013753,2]
[331615822,1720583462439,-1035.13,0.00013753,2]
[331615823,1720583462449,-2649.31,0.00013753,2]
[331615824,1720583462459,-500.0,0.00013753,2]
[331615825,1720583462468,-500.0,0.00013753,2]
[331615826,1720583462478,-657.17,0.00013753,2]
[331615827,1720583462488,-500.0,0.00013753,2]
[331615828,1720583462497,-500.0,0.00013753,2]
[331615829,1720583462507,-2417.39,0.00013753,2]
[331615830,1720583462517,-1214.94,0.00013753,2]
[331615831,1720583462527,-500.0,0.00013753,2]
[331615832,1720583462537,-500.0,0.00013753,2]
[331615833,1720583462546,-500.0,0.00013753,2]
[331615834,1720583462556,-500.0,0.00013753,2]
[331615835,1720583462567,-663.59,0.00013753,2]
[331615836,1720583462578,-1314.39,0.00013753,2]
[331615837,1720583462589,-500.0,0.00013753,2]
[331615838,1720583462598,-500.0,0.00013753,2]
[331615839,1720583462608,-2410.67,0.00013753,2]
[331615840,1720583462618,-500.0,0.00013753,2]
[331615841,1720583462628,-2455.52,0.00013753,2]
[331615842,1720583462638,-500.0,0.00013753,2]
[331615843,1720583462652,-649.05,0.00013753,2]
[331615844,1720583462661,-151.0,0.00013753,2]
[331615845,1720583462671,-151.350561,0.00013753,2]
[331615846,1720583462680,-691.2,0.00013753,2]
[331615847,1720583462693,-892.99,0.00013753,2]
[331615848,1720583462703,-756.46,0.00013753,2]
[331615849,1720583462713,-500.0,0.00013753,2]
[331615850,1720583462723,-3955.73,0.00013753,2]
[331615851,1720583462732,-500.0,0.00013753,2]
[331615852,1720583462743,-151.0,0.00013753,2]
[331615853,1720583462753,-500.0,0.00013753,2]
[331615854,1720583462765,-1785.2,0.00013753,2]
[331615855,1720583462776,-151.0,0.00013753,2]
[331615856,1720583462787,-151.0,0.00013753,2]
[331615857,1720583462797,-1494.38,0.00013753,2]
[331615858,1720583462807,-803.56,0.00013753,2]
[331615859,1720583462817,-709.84,0.00013753,2]
[331615860,1720583462827,-151.0,0.00013753,2]
[331615861,1720583462837,-1918.09,0.00013753,2]
[331615862,1720583462846,-151.0,0.00013753,2]
[331615863,1720583462857,-500.0,0.00013753,2]
[331615864,1720583462867,-151.0,0.00013753,2]
[331615865,1720583462877,-809.77,0.00013753,2]
[331615866,1720583462887,-834.36,0.00013753,2]
[331615867,1720583462901,-1097.39,0.00013753,2]
[331615868,1720583462911,-500.0,0.00013753,2]
[331615869,1720583462922,-2131.14,0.00013753,2]
[331615870,1720583462932,-508.82101271,0.00013753,2]
[331615871,1720583462941,-649.87,0.00013753,2]
[331615872,1720583462952,-1943.19,0.00013753,2]
[331615873,1720583462962,-500.0,0.00013753,2]
[331615874,1720583462972,-500.0,0.00013753,2]
[331615875,1720583462982,-500.0,0.00013753,2]
[331615876,1720583462993,-500.0,0.00013753,2]
[331615877,1720583463003,-500.0,0.00013753,2]
[331615878,1720583463014,-500.0,0.00013753,2]
[331615879,1720583463023,-3539.07,0.00013753,2]
[331615880,1720583463033,-1906.67,0.00013753,2]
[331615881,1720583463043,-2175.81,0.00013753,2]
[331615882,1720583463053,-1021.22,0.00013753,2]
[331615883,1720583463063,-735.55,0.00013753,2]
[331615884,1720583463073,-1947.47,0.00013753,2]
[331615885,1720583463083,-500.0,0.00013753,2]
[331615886,1720583463093,-151.0,0.00013753,2]
[331615887,1720583463104,-151.0,0.00013753,2]
[331615888,1720583463115,-151.0,0.00013753,2]
[331615889,1720583463125,-500.0,0.00013753,2]
[331615890,1720583463135,-500.0,0.00013753,2]
[331615891,1720583463148,-500.0,0.00013753,2]
[331615892,1720583463159,-500.0,0.00013753,2]
[331615893,1720583463168,-500.0,0.00013753,2]
[331615894,1720583463178,-1303.64,0.00013753,2]
[331615895,1720583463187,-500.0,0.00013753,2]
[331615896,1720583463196,-1027.85,0.00013753,2]
[331615897,1720583463206,-530.83,0.00013753,2]
[331615898,1720583463216,-2496.38,0.00013753,2]
[331615899,1720583463225,-500.0,0.00013753,2]
[331615900,1720583463234,-1886.0,0.00013753,2]
[331615901,1720583463243,-151.0,0.00013753,2]
[331615902,1720583463254,-151.0,0.00013753,2]
[331615903,1720583463263,-500.0,0.00013753,2]
[331615904,1720583463273,-1065.75,0.00013753,2]
[331615905,1720583463284,-151.0,0.00013753,2]
[331615906,1720583463295,-875.79,0.00013753,2]
[331615907,1720583463304,-1678.91,0.00013753,2]
[331615908,1720583463313,-500.0,0.00013753,2]
[331615909,1720583463324,-1118.39,0.00013753,2]
[331615910,1720583463334,-526.05,0.00013753,2]
[331615911,1720583463345,-1050.29,0.00013753,2]
[331615912,1720583463355,-716.57,0.00013753,2]
[331615913,1720583463366,-500.0,0.00013753,2]
[331615914,1720583463376,-1441.46,0.00013753,2]
[331615915,1720583463387,-1765.8,0.00013753,2]
[331615916,1720583463399,-500.0,0.00013753,2]
[331615917,1720583463409,-500.0,0.00013753,2]
[331615918,1720583463419,-1079.44,0.00013753,2]
[331615919,1720583463428,-1563.13,0.00013753,2]
[331615920,1720583463439,-500.0,0.00013753,2]
[331615921,1720583463449,-1762.65,0.00013753,2]
[331615922,1720583463458,-1138.06,0.00013753,2]
[331615923,1720583463467,-151.0,0.00013753,2]
[331615924,1720583463478,-500.0,0.00013753,2]
[331615925,1720583463487,-151.0,0.00013753,2]
[331615926,1720583463497,-966.97,0.00013753,2]
[331615927,1720583463506,-171.533658,0.00013753,2]
[331615928,1720583463515,-1938.54,0.00013753,2]
[331615929,1720583463524,-1666.03,0.00013753,2]
[331615930,1720583463534,-2563.4,0.00013753,2]
[331615931,1720583463543,-500.0,0.00013753,2]
[331615932,1720583463553,-500.0,0.00013753,2]
[331615933,1720583463562,-673.84,0.00013753,2]
[331615934,1720583463572,-500.0,0.00013753,2]
[331615935,1720583463581,-500.0,0.00013753,2]
[331615936,1720583463590,-500.0,0.00013753,2]
[331615937,1720583463600,-2019.93,0.00013753,2]
[331615938,1720583463609,-2357.87,0.00013753,2]
[331615939,1720583463618,-620.43609007,0.00013753,2]
[331615940,1720583463627,-832.3,0.00013753,2]
[331615941,1720583463637,-821.61,0.00013753,2]
[331615942,1720583463648,-500.0,0.00013753,2]
[331615943,1720583463657,-808.94,0.00013753,2]
[331615944,1720583463666,-500.0,0.00013753,2]
[331615945,1720583463675,-598.62,0.00013753,2]
[331615946,1720583463685,-500.0,0.00013753,2]
[331615947,1720583463694,-500.0,0.00013753,2]
[331615948,1720583463703,-1043.99,0.00013753,2]
[331615949,1720583463713,-1547.03,0.00013753,2]
[331615950,1720583463722,-2464.19,0.00013753,2]
[331615951,1720583463731,-4307.56,0.00013753,2]
[331615952,1720583463740,-3592.89,0.00013753,2]
[331615953,1720583463750,-2251.56,0.00013753,2]
[331615954,1720583463759,-500.0,0.00013753,2]
[331615955,1720583463768,-500.0,0.00013753,2]
[331615956,1720583463778,-4244.19,0.00013753,2]
[331615957,1720583463788,-2335.16,0.00013753,2]
[331615958,1720583463797,-500.0,0.00013753,2]
[331615959,1720583463807,-500.0,0.00013753,2]
[331615960,1720583463817,-581.91,0.00013753,2]
[331615961,1720583463826,-151.0,0.00013753,2]
[331615962,1720583463836,-151.0,0.00013753,2]
[331615963,1720583463846,-151.0,0.00013753,2]
[331615964,1720583463856,-1724.08,0.00013753,2]
[331615965,1720583463865,-500.0,0.00013753,2]
[331615966,1720583463876,-1782.26,0.00013753,2]
[331615967,1720583463885,-500.0,0.00013753,2]
[331615968,1720583463897,-500.0,0.00013753,2]
[331615969,1720583463906,-1417.11,0.00013753,2]
[331615970,1720583463916,-500.0,0.00013753,2]
[331615971,1720583463927,-801.73,0.00013753,2]
[331615972,1720583463936,-500.0,0.00013753,2]
[331615973,1720583463946,-500.0,0.00013753,2]
[331615974,1720583463956,-1120.14,0.00013753,2]
[331615975,1720583463966,-500.0,0.00013753,2]
[331615976,1720583463976,-3097.97,0.00013753,2]
[331615977,1720583463986,-1971.17,0.00013753,2]
[331615978,1720583463996,-1830.45,0.00013753,2]
[331615979,1720583464006,-1109.36,0.00013753,2]
[331615980,1720583464016,-1600.98,0.00013753,2]
[331615981,1720583464026,-913.1,0.00013753,2]
[331615982,1720583464035,-500.0,0.00013753,2]
[331615983,1720583464045,-500.0,0.00013753,2]
[331615984,1720583464056,-500.0,0.00013753,2]
[331615985,1720583464065,-500.0,0.00013753,2]
[331615986,1720583464075,-1658.66,0.00013753,2]
[331615987,1720583464085,-151.0,0.00013753,2]
[331615988,1720583464095,-151.0,0.00013753,2]
[331615989,1720583464105,-151.0,0.00013753,2]
[331615990,1720583464114,-850.18,0.00013753,2]
[331615991,1720583464124,-500.0,0.00013753,2]
[331615992,1720583464134,-794.68,0.00013753,2]
[331615993,1720583464145,-587.32,0.00013753,2]
[331615994,1720583464155,-500.0,0.00013753,2]
[331615995,1720583464164,-3675.82,0.00013753,2]
[331615996,1720583464174,-1026.83,0.00013753,2]
[331615997,1720583464183,-500.0,0.00013753,2]
[331615998,1720583464193,-1480.93,0.00013753,2]
[331615999,1720583464203,-500.0,0.00013753,2]
[331616000,1720583464212,-301.60161385,0.00013753,2]
[331616001,1720583464222,-1626.67,0.00013753,2]
[331616002,1720583464234,-742.1,0.00013753,2]
[331616003,1720583464244,-980.88,0.00013753,2]
[331616004,1720583464255,-500.0,0.00013753,2]
[331616005,1720583464264,-2500.0,0.00013753,3]
[331616006,1720583464274,-500.0,0.00013753,2]
[331616007,1720583464284,-670.02,0.00013753,2]
[331616008,1720583464294,-500.0,0.00013753,2]
[331616009,1720583464304,-500.0,0.00013753,2]
[331616010,1720583464314,-2791.03,0.00013753,2]
[331616011,1720583464323,-500.0,0.00013753,2]
[331616012,1720583464334,-3614.45,0.00013753,2]
[331616013,1720583464343,-151.0,0.00013753,2]
[331616014,1720583464353,-151.0,0.00013753,2]
[331616015,1720583464362,-268.358351,0.00013753,2]
[331616016,1720583464372,-644.41,0.00013753,2]
[331616017,1720583464383,-500.0,0.00013753,2]
[331616018,1720583464394,-1377.5,0.00013753,2]
[331616019,1720583464404,-500.0,0.00013753,2]
[331616020,1720583464414,-2907.35,0.00013753,2]
[331616021,1720583464424,-989.14,0.00013753,2]
[331616022,1720583464434,-645.68,0.00013753,2]
[331616023,1720583464444,-2311.79,0.00013753,2]
[331616024,1720583464454,-500.0,0.00013753,2]
[331616025,1720583464464,-1125.8,0.00013753,2]
[331616026,1720583464474,-500.0,0.00013753,2]
[331616027,1720583464484,-1719.81,0.00013753,2]
[331616028,1720583464493,-2229.25,0.00013753,2]
[331616029,1720583464504,-500.0,0.00013753,2]
[331616030,1720583464514,-533.21,0.00013753,2]
[331616031,1720583464524,-13934.86,0.00013753,2]
[331616032,1720583464535,-500.0,0.00013753,2]
[331616033,1720583464545,-151.0,0.00013753,2]
[331616034,1720583464557,-3146.73,0.00013753,2]
[331616035,1720583464566,-500.0,0.00013753,2]
[331616036,1720583464575,-151.0,0.00013753,2]
[331616037,1720583464585,-151.0,0.00013753,2]
[331616038,1720583464595,-2222.03,0.00013753,2]
[331616039,1720583464606,-819.51,0.00013753,2]
[331616040,1720583464616,-1605.89,0.00013753,2]
[331616041,1720583464627,-500.0,0.00013753,2]
[331616042,1720583464639,-751.42,0.00013753,2]
[331616043,1720583464650,-2787.07,0.00013753,2]
[331616044,1720583464660,-896.66,0.00013753,2]
[331616045,1720583464670,-500.0,0.00013753,2]
[331616046,1720583464679,-500.0,0.00013753,2]
[331616047,1720583464690,-1275.94,0.00013753,2]
[331616048,1720583464699,-1501.71,0.00013753,2]
[331616049,1720583464709,-1273.93,0.00013753,2]
[331616050,1720583464718,-959.24,0.00013753,2]
[331616051,1720583464727,-500.0,0.00013753,2]
[331616052,1720583464738,-500.0,0.00013753,2]
[331616053,1720583464748,-3979.95,0.00013753,2]
[331616054,1720583464757,-548.58,0.00013753,2]
[331616055,1720583464768,-151.0,0.00013753,2]
[331616056,1720583464777,-151.0,0.00013753,2]
[331616057,1720583464787,-1085.68,0.00013753,2]
[331616058,1720583464917,-151.0,0.00013753,2]
[331616059,1720583464927,-1338.54,0.00013753,2]
[331616060,1720583464936,-1722.53,0.00013753,2]
[331616061,1720583464946,-1103.75,0.00013753,2]
[331616062,1720583464955,-500.0,0.00013753,2]
[331616063,1720583464965,-2215.37,0.00013753,2]
[331616064,1720583464974,-1661.84,0.00013753,2]
[331616065,1720583464983,-500.0,0.00013753,2]
[331616066,1720583464993,-193.197325,0.00013753,2]
[331616067,1720583465002,-830.58,0.00013753,2]
[331616068,1720583465011,-831.93,0.00013753,2]
[331616069,1720583465021,-2509.84,0.00013753,2]
[331616070,1720583465030,-955.53,0.00013753,2]
[331616071,1720583465039,-500.0,0.00013753,2]